lending/lending_fUSD_20240710
["ID","MTS","AMOUNT","RATE_DAILY","PERIOD"]
[331616072,1720583465049,-802.2,0.00013753,2]
[331616073,1720583465058,-500.0,0.00013753,2]
[331616074,1720583465067,-531.61,0.00013753,2]
[331616075,1720583465076,-1224.26,0.00013753,2]
[331616076,1720583465086,-1800.73,0.00013753,2]
[331616077,1720583465095,-582.62,0.00013753,2]
[331616078,1720583465104,-635.36,0.00013753,2]
[331616079,1720583465114,-500.0,0.00013753,2]
[331616080,1720583465124,-1191.5,0.00013753,2]
[331616081,1720583465133,-1169.2,0.00013753,2]
[331616082,1720583465143,-500.0,0.00013753,2]
[331616083,1720583465153,-3596.89,0.00013753,2]
[331616084,1720583465162,-500.0,0.00013753,2]
[331616085,1720583465171,-500.0,0.00013753,2]
[331616086,1720583465181,-1816.75,0.00013753,2]
[331616087,1720583465191,-500.0,0.00013753,2]
[331616088,1720583465200,-531.24,0.00013753,2]
[331616089,1720583465209,-500.0,0.00013753,2]
[331616090,1720583465219,-2415.42,0.00013753,2]
[331616091,1720583465228,-500.0,0.00013753,2]
[331616092,1720583465237,-500.0,0.00013753,2]
[331616093,1720583465247,-3124.43,0.00013753,2]
[331616094,1720583465256,-500.0,0.00013753,2]
[331616095,1720583465266,-568.73814911,0.00013753,2]
[331616096,1720583465276,-500.0,0.00013753,2]
[331616097,1720583465285,-972.25,0.00013753,2]
[331616098,1720583465295,-3464.99,0.00013753,2]
[331616099,1720583465304,-718.32,0.00013753,2]
[331616100,1720583465313,-500.0,0.00013753,2]
[331616101,1720583465322,-500.0,0.00013753,2]
[331616102,1720583465331,-500.0,0.00013753,2]
[331616103,1720583465341,-951.37,0.00013753,2]
[331616104,1720583465350,-1973.58,0.00013753,2]
[331616105,1720583465359,-902.31,0.00013753,2]
[331616106,1720583465368,-1514.85,0.00013753,2]
[331616107,1720583465378,-500.0,0.00013753,2]
[331616108,1720583465387,-3007.38,0.00013753,2]
[331616109,1720583465397,-500.0,0.00013753,2]
[331616110,1720583465407,-2885.06,0.00013753,2]
[331616111,1720583465416,-2096.82,0.00013753,2]
[331616112,1720583465427,-500.0,0.00013753,2]
[331616113,1720583465436,-636.42,0.00013753,2]
[331616114,1720583465446,-500.0,0.00013753,2]
[331616115,1720583465455,-667.02,0.00013753,2]
[331616116,1720583465464,-5098.17,0.00013753,2]
[331616117,1720583465473,-500.0,0.00013753,2]
[331616118,1720583465483,-3189.09,0.00013753,2]
[331616119,1720583465492,-500.0,0.00013753,2]
[331616120,1720583465501,-678.48,0.00013753,2]
[331616121,1720583465511,-3328.38,0.00013753,2]
[331616122,1720583465519,-619.33,0.00013753,2]
[331616123,1720583465529,-695.84,0.00013753,2]
[331616124,1720583465538,-1511.02,0.00013753,2]
[331616125,1720583465547,-500.0,0.00013753,2]
[331616126,1720583465556,-3072.01,0.00013753,2]
[331616127,1720583465565,-3318.18,0.00013753,2]
[331616128,1720583465574,-500.0,0.00013753,2]
[331616129,1720583465583,-500.0,0.00013753,2]
[331616130,1720583465592,-649.18092413,0.00013753,2]
[331616131,1720583465602,-500.0,0.00013753,2]
[331616132,1720583465611,-5640.56,0.00013753,2]
[331616133,1720583465620,-1737.82,0.00013753,2]
[331616134,1720583465629,-500.0,0.00013753,2]
[331616135,1720583465638,-500.0,0.00013753,2]
[331616136,1720583465648,-793.49,0.00013753,2]
[331616137,1720583465657,-500.0,0.00013753,2]
[331616138,1720583465668,-500.0,0.00013753,2]
[331616139,1720583465677,-2244.21,0.00013753,2]
[331616140,1720583465687,-583.05,0.00013753,2]
[331616141,1720583465696,-500.0,0.00013753,2]
[331616142,1720583465705,-7432.1,0.00013753,2]
[331616143,1720583465714,-500.0,0.00013753,2]
[331616144,1720583465724,-2500.19,0.00013753,2]
[331616145,1720583465733,-677.25,0.00013753,2]
[331616146,1720583465742,-500.0,0.00013753,2]
[331616147,1720583465751,-500.0,0.00013753,2]
[331616148,1720583465760,-1041.56,0.00013753,2]
[331616149,1720583465771,-1498.24,0.00013753,2]
[331616150,1720583465781,-500.0,0.00013753,2]
[331616151,1720583465790,-500.0,0.00013753,2]
[331616152,1720583465799,-2097.57,0.00013753,2]
[331616153,1720583465809,-1629.49,0.00013753,2]
[331616154,1720583465818,-1247.97,0.00013753,2]
[331616155,1720583465827,-1059.78,0.00013753,2]
[331616156,1720583465837,-910.92,0.00013753,2]
[331616157,1720583465846,-500.0,0.00013753,2]
[331616158,1720583465855,-572.84,0.00013753,2]
[331616159,1720583465865,-500.0,0.00013753,2]
[331616160,1720583465874,-638.53,0.00013753,2]
[331616161,1720583465883,-4725.07,0.00013753,2]
[331616162,1720583465893,-1795.2,0.00013753,2]
[331616163,1720583465904,-2587.59,0.00013753,2]
[331616164,1720583465914,-500.0,0.00013753,2]
[331616165,1720583465925,-1250.82,0.00013753,2]
[331616166,1720583465935,-500.0,0.00013753,2]
[331616167,1720583465944,-850.89,0.00013753,2]
[331616168,1720583465954,-500.0,0.00013753,2]
[331616169,1720583465966,-500.0,0.00013753,2]
[331616170,1720583465982,-1000.31,0.00013753,2]
[331616171,1720583465992,-1576.14,0.00013753,2]
[331616172,1720583466002,-630.0,0.00013753,2]
[331616173,1720583466011,-500.0,0.00013753,2]
[331616174,1720583466021,-500.0,0.00013753,2]
[331616175,1720583466030,-654.5,0.00013753,2]
[331616176,1720583466039,-545.73,0.00013753,2]
[331616177,1720583466049,-500.0,0.00013753,2]
[331616178,1720583466058,-500.0,0.00013753,2]
[331616179,1720583466067,-1235.37,0.00013753,2]
[331616180,1720583466077,-1447.46,0.00013753,2]
[331616181,1720583466086,-920.93,0.00013753,2]
[331616182,1720583466096,-3952.31,0.00013753,2]
[331616183,1720583466105,-500.0,0.00013753,2]
[331616184,1720583466114,-1975.39,0.00013753,2]
[331616185,1720583466123,-500.0,0.00013753,2]
[331616186,1720583466133,-1160.95,0.00013753,2]
[331616187,1720583466142,-712.14,0.00013753,2]
[331616188,1720583466153,-1361.2,0.00013753,2]
[331616189,1720583466162,-1127.31,0.00013753,2]
[331616190,1720583466172,-1028.69,0.00013753,2]
[331616191,1720583466181,-1422.5,0.00013753,2]
[331616192,1720583466190,-3588.33,0.00013753,2]
[331616193,1720583466200,-1465.54,0.00013753,2]
[331616194,1720583466209,-500.0,0.00013753,2]
[331616195,1720583466218,-500.0,0.00013753,2]
[331616196,1720583466227,-1017.31,0.00013753,2]
[331616197,1720583466236,-830.82,0.00013753,2]
[331616198,1720583466245,-500.0,0.00013753,2]
[331616199,1720583466255,-867.78,0.00013753,2]
[331616200,1720583466264,-2288.39,0.00013753,2]
[331616201,1720583466273,-937.59,0.00013753,2]
[331616202,1720583466282,-500.0,0.00013753,2]
[331616203,1720583466291,-500.0,0.00013753,2]
[331616204,1720583466300,-500.0,0.00013753,2]
[331616205,1720583466309,-500.0,0.00013753,2]
[331616206,1720583466318,-530.53,0.00013753,2]
[331616207,1720583466328,-1411.51,0.00013753,2]
[331616208,1720583466337,-500.0,0.00013753,2]
[331616209,1720583466347,-500.0,0.00013753,2]
[331616210,1720583466356,-500.0,0.00013753,2]
[331616211,1720583466365,-500.0,0.00013753,2]
[331616212,1720583466375,-500.0,0.00013753,2]
[331616213,1720583466384,-500.0,0.00013753,2]
[331616214,1720583466393,-500.0,0.00013753,2]
[331616215,1720583466403,-826.51,0.00013753,2]
[331616216,1720583466413,-808.94,0.00013753,2]
[331616217,1720583466422,-730.69,0.00013753,2]
[331616218,1720583466432,-672.77,0.00013753,2]
[331616219,1720583466444,-2370.66,0.00013753,2]
[331616220,1720583466455,-605.55,0.00013753,2]
[331616221,1720583466464,-852.75,0.00013753,2]
[331616222,1720583466474,-500.0,0.00013753,2]
[331616223,1720583466483,-500.0,0.00013753,2]
[331616224,1720583466492,-565.48,0.00013753,2]
[331616225,1720583466502,-675.14,0.00013753,2]
[331616226,1720583466513,-1940.62,0.00013753,2]
[331616227,1720583466522,-500.0,0.00013753,2]
[331616228,1720583466532,-2542.58,0.00013753,2]
[331616229,1720583466542,-2482.09,0.00013753,2]
[331616230,1720583466553,-500.0,0.00013753,2]
[331616231,1720583466562,-500.0,0.00013753,2]
[331616232,1720583466571,-500.0,0.00013753,2]
[331616233,1720583466580,-500.0,0.00013753,2]
[331616234,1720583466590,-500.0,0.00013753,2]
[331616235,1720583466600,-1767.33,0.00013753,2]
[331616236,1720583466609,-2077.76,0.00013753,2]
[331616237,1720583466619,-786.03,0.00013753,2]
[331616238,1720583466628,-500.0,0.00013753,2]
[331616239,1720583466637,-500.0,0.00013753,2]
[331616240,1720583466649,-1875.95,0.00013753,2]
[331616241,1720583466659,-663.04,0.00013753,2]
[331616242,1720583466669,-500.0,0.00013753,2]
[331616243,1720583466679,-594.6,0.00013753,2]
[331616244,1720583466688,-1906.0,0.00013753,2]
[331616245,1720583466698,-1308.87,0.00013753,2]
[331616246,1720583466708,-915.99,0.00013753,2]
[331616247,1720583466718,-500.0,0.00013753,2]
[331616248,1720583466728,-980.65,0.00013753,2]
[331616249,1720583466740,-717.45,0.00013753,2]
[331616250,1720583466751,-1000.0,0.00013753,2]
[331616251,1720583466763,-500.0,0.00013753,2]
[331616252,1720583466773,-13249.46,0.00013753,2]
[331616253,1720583466783,-859.67,0.00013753,2]
[331616254,1720583466793,-503.21,0.00013753,2]
[331616255,1720583466803,-531.97611942,0.00013753,2]
[331616256,1720583466812,-665.53,0.00013753,2]
[331616257,1720583466822,-500.0,0.00013753,2]
[331616258,1720583466831,-364.2506536,0.00013753,2]
[331616259,1720583466840,-500.0,0.00013753,2]
[331616260,1720583466850,-1833.42,0.00013753,2]
[331616261,1720583466860,-1294.31,0.00013753,2]
[331616262,1720583466870,-1998.76,0.00013753,2]
[331616263,1720583466879,-1370.62,0.00013753,2]
[331616264,1720583466888,-501.38,0.00013753,2]
[331616265,1720583466900,-500.0,0.00013753,2]
[331616266,1720583466909,-500.0,0.00013753,2]
[331616267,1720583466918,-681.11,0.00013753,2]
[331616268,1720583466927,-686.68,0.00013753,2]
[331616269,1720583466937,-500.0,0.00013753,2]
[331616270,1720583466947,-500.0,0.00013753,2]
[331616271,1720583466957,-646.47,0.00013753,2]
[331616272,1720583466966,-3616.2,0.00013753,2]
[331616273,1720583466975,-1082.41,0.00013753,2]
[331616274,1720583466984,-1563.01,0.00013753,2]
[331616275,1720583466993,-3093.38,0.00013753,2]
[331616276,1720583467004,-1350.92,0.00013753,2]
[331616277,1720583467014,-500.0,0.00013753,2]
[331616278,1720583467023,-832.83,0.00013753,2]
[331616279,1720583467032,-500.0,0.00013753,2]
[331616280,1720583467042,-942.34,0.00013753,2]
[331616281,1720583467051,-1541.2,0.00013753,2]
[331616282,1720583467061,-778.92,0.00013753,2]
[331616283,1720583467070,-2342.4,0.00013753,2]
[331616284,1720583467080,-500.0,0.00013753,2]
[331616285,1720583467090,-885.11,0.00013753,2]
[331616286,1720583467099,-500.0,0.00013753,2]
[331616287,1720583467109,-500.0,0.00013753,2]
[331616288,1720583467119,-500.0,0.00013753,2]
[331616289,1720583467128,-500.0,0.00013753,2]
[331616290,1720583467138,-1985.25,0.00013753,2]
[331616291,1720583467149,-500.0,0.00013753,2]
[331616292,1720583467158,-500.0,0.00013753,2]
[331616293,1720583467167,-500.0,0.00013753,2]
[331616294,1720583467176,-1493.65,0.00013753,2]
[331616295,1720583467186,-500.0,0.00013753,2]
[331616296,1720583467195,-1260.9,0.00013753,2]
[331616297,1720583467204,-500.0,0.00013753,2]
[331616298,1720583467214,-663.59,0.00013753,2]
[331616299,1720583467223,-500.0,0.00013753,2]
[331616300,1720583467232,-699.31,0.00013753,2]
[331616301,1720583467242,-1053.68,0.00013753,2]
[331616302,1720583467251,-151.0,0.00013753,2]
[331616303,1720583467260,-510.88,0.00013753,2]
[331616304,1720583467270,-151.0,0.00013753,2]
[331616305,1720583467279,-500.0,0.00013753,2]
[331616306,1720583467289,-2225.37,0.00013753,2]
[331616307,1720583467299,-704.49,0.00013753,2]
[331616308,1720583467308,-849.25,0.00013753,2]
[331616309,1720583467318,-151.0,0.00013753,2]
[331616310,1720583467327,-500.0,0.00013753,2]
[331616311,1720583467336,-500.0,0.00013753,2]
[331616312,1720583467345,-151.0,0.00013753,2]
[331616313,1720583467354,-151.0,0.00013753,2]
[331616314,1720583467364,-151.0,0.00013753,2]
[331616315,1720583467373,-12946.42,0.00013753,2]
[331616316,1720583467383,-708.91,0.00013753,2]
[331616317,1720583467392,-1377.02,0.00013753,2]
[331616318,1720583467402,-1003.52,0.00013753,2]
[331616319,1720583467411,-3563.34,0.00013753,2]
[331616320,1720583467422,-1732.1,0.00013753,2]
[331616321,1720583467432,-460.32,0.00013753,2]
[331616322,1720583467442,-364.97299672,0.00013764,2]
[331616323,1720583467451,-152.31201458,0.00013764,2]
[331616324,1720583467460,-159.76354159,0.00013764,2]
[331616325,1720583467470,-150.0,0.00013776,2]
[331616326,1720583467480,-364.97299672,0.00013777,2]
[331616327,1720583467489,-152.31201458,0.00013777,2]
[331616328,1720583467499,-159.76354159,0.00013777,2]
[331616329,1720583467508,-644.0,0.00013785,2]
[331616330,1720583467518,-364.97299672,0.00013789,2]
[331616331,1720583467528,-152.31201458,0.00013789,2]
[331616332,1720583467537,-159.76354159,0.00013789,2]
[331616333,1720583467546,-900.42249764,0.00013799,2]
[331616334,1720583467555,-255.102475,0.00013799,2]
[331616335,1720583467564,-255.102475,0.00013799,2]
[331616336,1720583467574,-151.0,0.00013799,2]
[331616337,1720583467583,-151.0,0.00013799,2]
[331616338,1720583467592,-186193.09222895,0.000138,2]
[331616339,1720583467601,-3726791.03095664,0.000138,2]
[331616340,1720583468589,-41358.24254163,0.000138,2]
[331616341,1720583468601,-72091.83589408,0.000138,2]
[331616342,1720583468613,-2010.93506105,0.000138,2]
[331616343,1720583468624,-650.0,0.000138,2]
[331616344,1720583469906,-1008.68,0.00013698,2]
[331616345,1720583469916,-500.0,0.00013698,2]
[331616346,1720583469926,-879.3200005,0.00013698,2]
[331616347,1720583469974,-286.0599995,0.00013698,2]
[331616348,1720583469984,-327.99802907,0.00013753,2]
[331616349,1720583469995,-172.00197093,0.00013753,2]
[331616350,1720583470005,-500.0,0.00013753,2]
[331616351,1720583470015,-1008.68,0.00013753,2]
[331616352,1720583470024,-500.0,0.00013753,2]
[331616353,1720583470033,-1165.38,0.00013753,2]
[331616354,1720583470043,-17805.45486401,0.000138,2]
[331616355,1720583470391,-423443.06753207,0.000138,2]
[331616356,1720583470403,-1083059.9625292,0.000138,2]
[331616357,1720583471505,-538.91,0.00013698,2]
[331616358,1720583471515,-270.68626378,0.00013708,2]
[331616359,1720583471549,-1351.78790995,0.00013708,2]
[331616360,1720583471561,-2922.00701286,0.00013708,2]
[331616361,1720583471572,-601.69052635,0.00013708,2]
[331616362,1720583471586,-8954.02059497,0.00013708,2]
[331616363,1720583471595,-538.91,0.00013753,2]
[331616364,1720583471605,-69398.17862663,0.000138,2]
[331616365,1720583471621,-607.97134023,0.000138,2]
[331616366,1720583471642,-40216.8813137,0.000138,2]
[331616367,1720583519192,298.11,0.00010936,2]
[331616368,1720583880470,415.16842309,0.00011199,2]
[331616369,1720583889092,253.31,0.00011202,2]
[331616370,1720583906341,253.31,0.00011202,2]
[331616371,1720584004853,11795.0,0.00025,72]
[331616372,1720584009332,3821.40419042,0.00011199,2]
[331616373,1720584015891,202.93287367,0.00011199,2]
[331616374,1720584058234,183.07649595,0.00011199,2]
[331616375,1720584061102,366.88188078,0.00011199,2]
[331616376,1720584111866,302.49,0.00010277,2]
[331616377,1720584132086,2978.0574796,0.00011199,2]
[331616378,1720584252618,11547.76769329,0.00011199,2]
[331616379,1720584303590,151.071013,0.00025,73]
[331616380,1720584307236,1016.47627032,0.00011199,2]
[331616381,1720584315265,151.071013,0.00025,74]
[331616382,1720584319336,151.071013,0.00025,72]
[331616383,1720584325588,151.071013,0.00025,71]
[331616384,1720584333290,151.071013,0.00025,67]
[331616385,1720584335623,151.071013,0.00025,66]
[331616386,1720584339984,151.071013,0.00025,65]
[331616387,1720584342315,151.071013,0.00025,64]
[331616388,1720584346153,151.071013,0.00025,60]
[331616389,1720584355743,151.071013,0.00025,60]
[331616390,1720584358565,151.071013,0.00025,64]
[331616391,1720584363808,833.49803925,0.00011199,2]
[331616396,1720584494256,721.36501093,0.00011199,2]
[331616424,1720584631712,-999.11,0.00012133,2]
[331616425,1720584631722,-169.74,0.00012146,2]
[331616426,1720584631731,-168.39,0.00012146,2]
[331616427,1720584631741,-300.0,0.0001216,2]
[331616428,1720584631750,-1441.31932045,0.00012161,2]
[331616429,1720584631880,-6047.21854333,0.00012161,2]
[331616430,1720584631892,-10267.24643384,0.00012161,2]
[331616431,1720584631939,-2305.85333422,0.00012161,2]
[331616432,1720584631950,-1336.23099749,0.00012161,2]
[331616433,1720584633236,-48.37137067,0.00012161,2]
[331616434,1720584633246,-659.71379214,0.0001217,2]
[331616435,1720584633258,-340.28620786,0.0001217,2]
[331616436,1720584633267,-61.15470252,0.00012178,2]
[331616437,1720584633278,-188.84529748,0.00012178,2]
[331616438,1720584633287,-178.75,0.00012191,2]
[331616439,1720584633296,-383.33624557,0.00012241,2]
[331616446,1720584637693,-304.01,0.00012057,2]
[331616447,1720584637704,-116.66375443,0.00012241,2]
[331616448,1720584637714,-900.0,0.00012241,2]
[331616449,1720584637724,-366.88188078,0.00012302,2]
[331616450,1720584637735,-155.55,0.00012303,2]
[331616451,1720584637745,-155.55,0.00012341,2]
[331616452,1720584637755,-150.0,0.00012353,2]
[331616453,1720584637765,-155.55,0.00012378,2]
[331616454,1720584637776,-155.55,0.00012416,2]
[331616455,1720584637787,-155.55,0.00012454,2]
[331616456,1720584637797,-181.98,0.00012461,2]
[331616457,1720584637806,-155.55,0.00012491,2]
[331616458,1720584637817,-155.55,0.00012529,2]
[331616459,1720584637828,-302.49,0.00012541,2]
[331616460,1720584637840,-155.55,0.00012567,2]
[331616461,1720584637850,-155.55,0.00012604,2]
[331616462,1720584637860,-190.83936475,0.00012606,2]
[331616463,1720584637918,-309.15063525,0.00012606,2]
[331616464,1720584637929,-260.14,0.00012606,2]
[331616465,1720584637939,-132.60042488,0.0001264,2]
[331616466,1720584637951,-720.62291816,0.0001264,2]
[331616467,1720584638024,-611.77665696,0.0001264,2]
[331616468,1720584638034,-114.44884348,0.00012642,2]
[331616469,1720584638079,-41.10115652,0.00012642,2]
[331616470,1720584638090,-155.55,0.0001268,2]
[331616472,1720584638107,-487.26619314,0.00012708,2]
[331616474,1720584638120,-367.52380686,0.00012708,2]
[331616476,1720584638130,-854.79,0.00012708,2]
[331616478,1720584638141,-155.55,0.00012718,2]
[331616480,1720584638152,-155.55,0.00012755,2]
[331616482,1720584638164,-155.55,0.00012793,2]
[331616484,1720584638176,-155.55,0.00012831,2]
[331616486,1720584638187,-155.55,0.00012868,2]
[331616488,1720584638197,-155.55,0.00012906,2]
[331616491,1720584638208,-854.79,0.00012941,2]
[331616493,1720584638222,-199.54114268,0.00012941,2]
[331616496,1720584638241,-672.46885732,0.00012941,2]
[331616498,1720584638252,-155.55,0.00012944,2]
[331616500,1720584638262,-150.0,0.00012952,2]
[331616502,1720584638273,-441.06,0.00012978,2]
[331616504,1720584638284,-354.67375951,0.00012999,2]
[331616507,1720584638304,-590.1,0.00012999,2]
[331616661,1720584639928,-55.22624049,0.00012999,2]
[331616663,1720584639938,-618.44455046,0.00013,2]
[331616673,1720584640017,-1804.96544954,0.00013,2]
[331616675,1720584640027,-200.0,0.00013,4]
[331616677,1720584640036,-900.0,0.00013063,2]
[331616679,1720584640046,-500.0,0.000131,4]
[331616680,1720584640056,-3480.69095046,0.00013128,2]
[331616681,1720584640067,-744.89576195,0.00013128,2]
[331616682,1720584640079,-774.41328759,0.00013128,2]
[331616683,1720584640088,-5818.7261424,0.00013128,2]
[331616684,1720584640100,-3486.1778301,0.00013128,2]
[331616685,1720584640109,-1590.29479549,0.00013128,2]
[331616686,1720584640121,-443.25794507,0.00013128,2]
[331616688,1720584640131,-800.0,0.000132,4]
[331616690,1720584640141,-395.67258125,0.00013216,6]
[331616693,1720584640159,-301.74741875,0.00013216,6]
[331616695,1720584640171,-1100.0,0.000133,4]
[331616697,1720584640181,-420.0,0.00013346,2]
[331616699,1720584640191,-528.24,0.0001337,2]
[331616701,1720584640200,-1400.0,0.000134,4]
[331616703,1720584640210,-627.30586215,0.00013472,2]
[331616705,1720584640220,-269.73227948,0.00013472,2]
[331616707,1720584640230,-386.18218409,0.00013492,2]
[331616709,1720584640240,-200.0,0.000135,4]
[331616711,1720584640250,-521.02758644,0.00013516,2]
[331616713,1720584640259,-2613.00156843,0.0001357,3]
[331616715,1720584640269,-170.81539736,0.00013598,2]
[331616717,1720584640278,-258.992,0.00013598,2]
[331616719,1720584640287,-3000.0,0.000136,2]
[331616721,1720584640296,-200.0,0.000136,4]
[331616723,1720584640306,-3000.0,0.0001363,2]
[331616725,1720584640316,-309.88,0.00013644,2]
[331616727,1720584640325,-4773.61770901,0.00013653,2]
[331616729,1720584640334,-823.27,0.00013661,2]
[331616731,1720584640344,-621.483,0.00013661,2]
[331616733,1720584640353,-1800.24,0.00013661,2]
[331616735,1720584640363,-151.73,0.00013661,2]
[331616737,1720584640372,-2000.0,0.0001368,2]
[331616739,1720584640381,-1005.0102496,0.0001369,2]
[331616741,1720584640390,-1260.09033752,0.0001369,2]
[331616743,1720584640399,-1259.95,0.0001369,2]
[331616745,1720584640408,-1259.95,0.0001369,2]
[331616747,1720584640417,-1259.95,0.0001369,2]
[331616748,1720584640428,-1259.95,0.0001369,2]
[331616750,1720584640438,-1000.0,0.00013691,2]
[331616753,1720584640447,-500.0,0.00013698,2]
[331616754,1720584640457,-500.0,0.00013698,2]
[331616756,1720584640467,-500.0,0.00013698,2]
[331616759,1720584640477,-500.0,0.00013698,2]
[331616760,1720584640486,-303.21080139,0.00013698,2]
[331616884,1720584642802,-621.24,0.00012241,2]
[331616885,1720584642816,-8873.43413331,0.00012241,2]
[331616886,1720584642827,-196.78919861,0.00013698,2]
[331616887,1720584642839,-114.87841812,0.00013698,2]
[331616888,1720584642851,-385.12158188,0.00013698,2]
[331616889,1720584642860,-500.0,0.00013698,2]
[331616890,1720584642870,-500.0,0.00013698,2]
[331616891,1720584642879,-500.0,0.00013698,2]
[331616892,1720584642887,-500.0,0.00013698,2]
[331616893,1720584642897,-246.38642128,0.00013698,2]
[331616894,1720584642906,-500.0,0.00013698,2]
[331616895,1720584642915,-57.9454266,0.00013698,2]
[331616896,1720584642961,-442.0545734,0.00013698,2]
[331616897,1720584642970,-493.16026911,0.00013698,2]
[331616898,1720584642982,-6.83973089,0.00013698,2]
[331616899,1720584642991,-500.0,0.00013698,2]
[331616900,1720584643000,-500.0,0.00013698,2]
[331616901,1720584643009,-394.76027031,0.00013698,2]
[331616947,1720584644504,-105.23972969,0.00013698,2]
[331616948,1720584644514,-500.0,0.00013698,2]
[331616949,1720584644523,-225.78755319,0.00013698,2]
[331616950,1720584644553,-1414.27244681,0.00013698,2]
[331616951,1720584644562,-500.0,0.00013698,2]
[331616952,1720584644572,-500.0,0.00013698,2]
[331616953,1720584644581,-500.0,0.00013698,2]
[331616954,1720584644590,-481.28815783,0.00013698,2]
[331616955,1720584644600,-200.0,0.00013698,2]
[331616956,1720584644609,-812.24,0.00013698,2]
[331616957,1720584644619,-500.0,0.00013698,2]
[331616958,1720584644628,-297.19739272,0.00013698,2]
[331616959,1720584644637,-500.0,0.00013698,2]
[331616960,1720584644647,-500.0,0.00013698,2]
[331616961,1720584644657,-500.0,0.00013698,2]
[331616962,1720584644666,-500.0,0.00013698,2]
[331616963,1720584644677,-500.0,0.00013698,2]
[331616964,1720584644686,-621.45,0.00013698,2]
[331616965,1720584644695,-939.91,0.00013698,2]
[331616966,1720584644705,-500.0,0.00013698,2]
[331616967,1720584644715,-500.0,0.00013698,2]
[331616968,1720584644725,-1332.1,0.00013698,2]
[331616969,1720584644734,-593.62,0.00013698,2]
[331616970,1720584644744,-500.0,0.00013698,2]
[331616971,1720584644753,-500.0,0.00013698,2]
[331616972,1720584644762,-500.0,0.00013698,2]
[331616973,1720584644772,-281.31323917,0.00013698,2]
[331616974,1720584644781,-500.0,0.00013698,2]
[331616975,1720584644790,-500.0,0.00013698,2]
[331616976,1720584644799,-724.84,0.00013698,2]
[331616977,1720584644809,-1127.21,0.00013698,2]
[331616978,1720584644818,-1034.57,0.00013698,2]
[331616979,1720584644828,-1311.83,0.00013698,2]
[331616980,1720584644839,-500.0,0.00013698,2]
[331616981,1720584644849,-500.0,0.00013698,2]
[331616982,1720584644858,-892.22,0.00013698,2]
[331616983,1720584644867,-1428.38,0.00013698,2]
[331616984,1720584644876,-332.35216209,0.00013698,2]
[331616985,1720584644886,-1796.43,0.00013698,2]
[331616986,1720584644896,-500.0,0.00013698,2]
[331616987,1720584644905,-956.75,0.00013698,2]
[331616988,1720584644914,-1475.89,0.00013698,2]
[331616989,1720584644926,-500.0,0.00013698,2]
[331616990,1720584644935,-1485.8,0.00013698,2]
[331616991,1720584644945,-500.0,0.00013698,2]
[331616992,1720584644955,-755.72,0.00013698,2]
[331616993,1720584644965,-270.55716895,0.00013698,2]
[331616994,1720584644974,-500.0,0.00013698,2]
[331616995,1720584644983,-1252.21,0.00013698,2]
[331616996,1720584644994,-500.0,0.00013698,2]
[331616997,1720584645003,-1575.78,0.00013698,2]
[331616998,1720584645014,-395.5170903,0.00013698,2]
[331616999,1720584645024,-1495.04,0.00013698,2]